{"text_format":"1","workbook":"xlsx","n_sheets":5,"sheets":["Deckblatt","List","Translations","Refinement der Genotypisierung","Validierung"],"not_rendered":{"charts":0,"images":1,"macros":1,"external_links":1,"defined_names":80,"comments":0,"pivot_tables":0},"unopened":[],"bounds":{"document_bytes":16777216,"sheet_cells":100000,"rows_first":2000,"rows_last":500,"rows_between":2000,"halvings":0,"cell_chars":16384,"cell_head_chars":4096},"cells_cut":0,"cells_raw":0,"read":"whole","date_system":"1900"}

{"sheet":"Deckblatt","index":0,"n_rows":14,"n_cols":4,"rows_kept":14,"cut":false,"hidden":false,"merged":[[0,1,0,4],[16,1,16,4]]}
[null,"Meldung von Tierversuchen, gem. § 1 Abs. 1 Satz 1 VersTierMeldV"]
[]
[]
[null,null,"EU-Mitgliedsstaat:","Germany"]
[]
[null,null,"Vorname:"]
[]
[null,null,"Name:"]
[]
[null,null,"Email:"]
[]
[null,null,"Einrichtung / Betrieb:"]
[]
[null,null,"Meldejahr:",2022]

{"sheet":"List","index":1,"n_rows":3,"n_cols":32,"rows_kept":3,"cut":false,"hidden":false,"merged":[[1,9,1,11],[1,16,1,18],[0,23,1,25],[1,4,1,7]]}
[null,null,null,null,"zur Aktivierung des Formulars die Makros aktivieren (i.d.R. gelbe Leiste \"Inhalt aktivieren\")",null,null,null,null,null,null,null,null,null,"Version 01/23",null,null,null,null,null,null,null,null,"Die Angabe ist verpflichtend für alle Tiere, die im Rahmen der Verwendung genotypsiert wurden (genetisch verändert oder Wildtyp). Bei erneuter Verwendung (Spalte H = Ja) bitte nur ausfüllen, wenn die Genotypsierung auch im Rahmen der erneuten Verwendung stattgefunden hat."]
[null,null,null,null,"bei manueller Eingabe von Daten die Zeilen bitte nacheinander von links (Spalte A) nach rechts ausfüllen",null,null,null,"nur bei Erstverwendung (Spalte H = Nein), alle Tiere außer Primaten","nur bei Erstverwendung (Spalte H = Nein), nur bei Primaten",null,null,null,null,null,null,"nur bei regulatorischer Verwendung, außer Routineproduktion"]
[{"$f":"Translations!DA2","v":"EU Submission"},{"$f":"Translations!DB2","v":"Bezeichnung (z.B. Aktenzeichen)"},{"$f":"Translations!DC2","v":"BfR-ID"},{"$f":"Translations!DD2","v":"BfR-Kommentar"},{"$f":"Translations!DE2","v":"Tierart"},{"$f":"Translations!DF2","v":"bei Anderen"},{"$f":"Translations!DG2","v":"Anzahl"},{"$f":"Translations!DH2","v":"Wiederverwendung (erneute Verwend.)"},{"$f":"Translations!DI2","v":"Geburtsort"},{"$f":"Translations!DJ2","v":"NHP Herkunft"},{"$f":"Translations!DW2","v":"Selbst- erhaltende Kolonie?"},{"$f":"Translations!DK2","v":"NHP Generation"},{"$f":"Translations!DL2","v":"Genetischer Status"},{"$f":"Translations!DM2","v":"Schaffung einer neuen GV Linie"},{"$f":"Translations!DN2","v":"Versuchszweck"},{"$f":"Translations!DO2","v":"bei Anderen"},{"$f":"Translations!DP2","v":"Art der Vorschriften"},{"$f":"Translations!DQ2","v":"bei Anderen"},{"$f":"Translations!DR2","v":"Herkunft der Vorschriften"},{"$f":"Translations!DS2","v":"Schweregrad"},{"$f":"Translations!DT2","v":"Aktenzeichen"},{"$f":"Translations!DU2","v":"Erklärung bei Warnungen"},{"$f":"Translations!DV2","v":"Kommentare"},{"$f":"Translations!DX2","v":"Genotypisierung im Rahmen dieser Verwendung"},{"$f":"Translations!DY2","v":"bei Anderen"},{"$f":"Translations!EF2","v":"Belastung der Genotypisierung"},{"$f":"Translations!DZ2","v":"Freifeld"},{"$f":"Translations!EA2","v":"Field 2"},{"$f":"Translations!EB2","v":"Field 3"},{"$f":"Translations!EC2","v":"Field 4"},{"$f":"Translations!ED2","v":"Field 5"},{"$f":"Translations!EE2","v":"Field 6"}]

{"sheet":"Translations","index":2,"n_rows":79,"n_cols":136,"rows_kept":79,"cut":false,"hidden":true,"merged":[[2,104,2,106],[2,108,2,109]]}
[null,"Kombinierter Zweck",null,null,null,null,null,null,null,"Code","Tierart",null,"Code + Type",null,null,null,null,null,null,"Länder",null,null,"Herkunft der Vorschriften ",null,null,null,null,null,null,"Art der Vorschriften",null,null,null,null,null,null,null,"Schweregrad",null,null,null,"Y/N",null,"Geburtsort",null,null,null,null,null,null,"Nichtmenschliche Primaten - Herkunft",null,null,null,null,null,null,"Nichtmenschliche Primaten - Generation",null,null,null,"Genetischer Status",null,null,null,null,null,null,"Berichtszeitraum",null,null,"Level 1","Grundlagenforschung","Translationale und angewandte Forschung","Verwendung zu regulatorischen Zwecken und Routineproduktion"," ","Qualitätskontrolle (einschl. Chargenunbedenklichkeits- und -potenzprüfungen)","Routineproduktion, nach Produkttyp","Toxizität und andere Unbedenklichkeitsprüfungen, einschl. pharmakokin. Tests",null,"Akute Toxizität (einmalige Verabreichung), einschl. Limit-Test","Toxizität bei wiederholter Verabreichung","Ökotoxizität","Methoden der Genotypisierung",null,null,null,null,null,null,"Field 1 dropdown values","Field 2 dropdown values","Field 3 dropdown values","Field 4 dropdown values","Field 5 dropdown values","Field 6 dropdown values","Id1 Dropdown values","Id2 Dropdown values","Id3 Dropdown values","Andere Species Dropdown values","Andere Purpose Dropdown values","Andere Vorschriften Dropdown values","Custom Schweregrad Dropdown values",null,"Table Headers"]
[{"$f":"MID(B2,1,6)","v":"[PB1] "},"[PB1] (Grundlagenforschung) Onkologie",null,null,null,null,null,null,null,"A1","Mäuse (Mus musculus)",null,{"$f":"CONCATENATE(\"[\",J2,\"] \",K2)","v":"[A1] Mäuse (Mus musculus)"},null,null,null,null,null,null,"Austria",null,null,"[LO1] Vorschriften, die EU-Anforderungen erfüllen",null,null,null,null,null,null,"[LT1] Vorschriften für Humanarzneimittel",null,null,null,null,null,null,null,"[SV1] Keine Wiederherstellung der Lebensfunktion",null,null,null,"[N] Nein",null,"[O1] in der Union in einem zugelassenen Zuchtbetrieb geborene Tiere",null,null,null,null,null,null,"[NHPO1] In einem zugelassenen Zuchtbetrieb in der Union geborene NHP",null,null,null,null,null,null,"[NHPG1] F0",null,null,null,"[GS1] Genetisch nicht verändert",null,null,null,null,null,null,2021,null,null,"Grundlagenforschung","[PB1] Onkologie","[PT21] Krebserkrankungen des Menschen","Qualitätskontrolle (einschl. Chargenunbedenklichkeits- und -potenzprüfungen)"," ","[PR61] Chargenunbedenklichkeitsprüfungen","[PR51] Produkte auf Blutbasis","Akute Toxizität (einmalige Verabreichung), einschl. Limit-Test",null,"[PR81] LD50, LC50","[PR87] Bis zu 28 Tage","[PR98] Akute Toxizität (Ökotoxizität)","[IG1] Invasive Genotypisierung: Blutprobe",null,null,null,null,null,null,null,null,null,null,null,null,null,null,null,null,null,null,null,null,"EU Submission","Bezeichnung (z.B. Aktenzeichen)","BfR-ID","BfR-Kommentar","Tierart","bei Anderen","Anzahl","Wiederverwendung (erneute Verwend.)","Geburtsort","NHP Herkunft","NHP Generation","Genetischer Status","Schaffung einer neuen GV Linie","Versuchszweck","bei Anderen","Art der Vorschriften","bei Anderen","Herkunft der Vorschriften","Schweregrad","Aktenzeichen","Erklärung bei Warnungen","Kommentare","Selbst- erhaltende Kolonie?","Genotypisierung im Rahmen dieser Verwendung","bei Anderen","Freifeld","Field 2","Field 3","Field 4","Field 5","Field 6","Belastung der Genotypisierung"]
["[PB2] ","[PB2] (Grundlagenforschung) Kardiovaskuläres System (Blut- und Lymphgefäße)",null,null,null,null,null,null,null,"A2","Ratten (Rattus norvegicus)",null,"[A2] Ratten (Rattus norvegicus)",null,null,null,null,null,null,"Belgium",null,null,"[LO2] Vorschriften, die nur nationale Anforderungen erfüllen",null,null,null,null,null,null,"[LT2] Vorschriften für Tierarzneimittel und ihre Rückstände",null,null,null,null,null,null,null,"[SV2] Gering (bis zu gering)",null,null,null,"[Y] Ja",null,"[O2] in der Union, jedoch nicht in einem zugelassenen Zuchtbetrieb geborene Tiere",null,null,null,null,null,null,"[NHPO2] In Europa, jedoch nicht in einem zugelassenen Zuchtbetrieb geborene NHP",null,null,null,null,null,null,"[NHPG2] F1",null,null,null,"[GS2] Genetisch verändert und kein pathologischer Phänotyp aufgetreten",null,null,null,null,null,null,2022,null,null,"Translationale und angewandte Forschung","[PB2] Kardiovaskuläres System (Blut- und Lympfhgefäße)","[PT22] Infektionskrankheiten des Menschen","[PR71] Andere Wirksamkeits- und Toleranzprüfungen"," ","[PR62] Pyrogenitätsprüfungen","[PR52] Monoklonale Antikörper nur im Aszites-Verfahren","[PR84] Hautreizung- verätzung",null,"[PR82] Andere letale Methoden","[PR88] 29 - 90 Tage","[PR99] Chronische Toxizität (Ökotoxizität)","[IG2] Invasive Genotypisierung: Biopsie vom Ohr (nicht in Verbindung mit Markierung)",null,null,null,null,null,null,null,null,null,null,null,null,null,null,null,null,null,null,null,null,"Specific userform1 translations",null,null,null,"Specific userform1 translations"]
["[PB3] ","[PB3] (Grundlagenforschung) Nervensystem",null,null,null,null,null,null,null,"A3","Meerschweinchen (Cavia porcellus)",null,"[A3] Meerschweinchen (Cavia porcellus)",null,null,null,null,null,null,"Bulgaria",null,null,"[LO3] Vorschriften, die EU-externe Anforderungen erfüllen",null,null,null,null,null,null,"[LT3] Vorschriften für Medizinprodukte",null,null,null,null,null,null,null,"[SV3] Mittel",null,null,null,null,null,"[O3] im restlichen Europa geborene Tiere",null,null,null,null,null,null,"[NHPO3] in Asien geborene NHP",null,null,null,null,null,null,"[NHPG3] F2 oder höher",null,null,null,"[GS3] Genetisch verändert und pathologischer Phänotyp ist aufgetreten",null,null,null,null,null,null,2023,null,null,"Verwendung zu regulatorischen Zwecken und Routineproduktion","[PB3] Nevensystem","[PT23] Kardiovaskuläre Erkrankung des Menschen","Toxizität und andere Unbedenklichkeitsprüfungen, einschl. pharmakokin. Tests"," ","[PR63] Chargenpotenzprüfungen","[PR54] Monoklonale und polyklonale Antikörper (ausgenommen im Aszites-Verfahren)","[PR85] Sensibilisierung der Haut",null,"[PR83] Nichtletale Methoden","[PR89] mehr als 90 Tage","[PR100] Reproduktionstoxizität (Ökotoxizität)","[IG3] Invasive Genotypisierung: Schwanzspitzenbiopsie",null,null,null,null,null,null,null,null,null,null,null,null,null,null,null,null,null,null,null,null,"vorherige Zeile",null,null,null,"Kategorie (Level 1):"]
["[PB4] ","[PB4] (Grundlagenforschung) Atmungssystem",null,null,null,null,null,null,null,"A4","Goldhamster (Mesocricetus auratus)",null,"[A4] Goldhamster (Mesocricetus auratus)",null,null,null,null,null,null,"Croatia",null,null,null,null,null,null,null,null,null,"[LT4] Vorschriften für Industriechemikalien",null,null,null,null,null,null,null,"[SV4] Schwer",null,null,null,null,null,"[O4] in anderen Teilen der Welt geborene Tiere",null,null,null,null,null,null,"[NHPO4] in Amerika geborene NHP",null,null,null,null,null,null,null,null,null,null,null,null,null,null,null,null,null,2024,null,null,"[PE40] Schutz der natürlichen Umwelt im Interesse der Gesundheit oder des Wohlbefindens von Menschen und Tieren","[PB4] Atmungssystem","[PT24] Neven- und Geisteserkrankungen des Menschen","Routineproduktion, nach Produkttyp"," ","[PR64] Andere Qualitätskontrollen","[PR53] Andere Produkte","[PR86] Augenreizung/-verätzung",null,null,null,"[PR101] Endokrine Wirkung (Ökotoxizität)","[IG6] Invasive Genotypisierung: Flossenbiopsie",null,null,null,null,null,null,null,null,null,null,null,null,null,null,null,null,null,null,null,null,"Zeile",null,null,null,"Zweck Level 2:"]
["[PB5] ","[PB5] (Grundlagenforschung) Gastrointestinales System, einschließlich Leber",null,null,null,null,null,null,null,"A5","Chinesischer Grauhamster (Cricetulus griseus)",null,"[A5] Chinesischer Grauhamster (Cricetulus griseus)",null,null,null,null,null,null,"Cyprus",null,null,null,null,null,null,null,null,null,"[LT5] Vorschriften für Pflanzenschutzmittel",null,null,null,null,null,null,null,null,null,null,null,null,null,null,null,null,null,null,null,null,"[NHPO5] in Afrika geborene NHP",null,null,null,null,null,null,null,null,null,null,null,null,null,null,null,null,null,2025,null,null,"[PS41] Erhaltung der Art","[PB5] Gastrointestinales System, einschließlich Leber","[PT25] Atemwegserkrankungen des Menschen",null,null,null,null,"Toxizität bei wiederholter Verabreichung",null,null,null,"[PR102] Bioakkumulation (Ökotoxizität)","[IG4] Invasive Genotypisierung: Toe clipping (nicht in Verbindung mit Markierung)",null,null,null,null,null,null,null,null,null,null,null,null,null,null,null,null,null,null,null,null,"Laden",null,null,null,"Zweck Level 3:"]
["[PB6] ","[PB6] (Grundlagenforschung) Muskuloskelettales System",null,null,null,null,null,null,null,"A6","Mongolische Rennmäuse (Meriones unguiculatus)",null,"[A6] Mongolische Rennmäuse (Meriones unguiculatus)",null,null,null,null,null,null,"Czech Republic",null,null,null,null,null,null,null,null,null,"[LT6] Vorschriften für Biozidprodukte",null,null,null,null,null,null,null,null,null,null,null,null,null,null,null,null,null,null,null,null,"[NHPO6] in anderen Teilen der Welt geborene NHP",null,null,null,null,null,null,null,null,null,null,null,null,null,null,null,null,null,2026,null,null,"[PE42-1] Hochschulausbildung","[PB6] Muskuloskelettales System","[PT26] Gastrointestinal Erkrankung des Menschen, einschließlich der Leber",null,null,null,null,"[PR90] Kanzerogenität",null,null,null,"[PR103] Andere Ökotoxizität","[IG5] Invasive Genotypisierung: Andere",null,null,null,null,null,null,null,null,null,null,null,null,null,null,null,null,null,null,null,null,"nächste Zeile",null,null,null,"Zweck Level 4:"]
["[PB7] ","[PB7] (Grundlagenforschung) Immunsystem",null,null,null,null,null,null,null,"A7","Andere Nager (Andere Rodentia)",null,"[A7] Andere Nager (Andere Rodentia)",null,null,null,null,null,null,"Denmark",null,null,null,null,null,null,null,null,null,"[LT7] Vorschriften für Lebensmittel, einschließlich Materialien, die mit Lebensmitteln in Berührung kommen",null,null,null,null,null,null,null,null,null,null,null,null,null,null,null,null,null,null,null,null,null,null,null,null,null,null,null,null,null,null,null,null,null,null,null,null,null,null,2027,null,null,"[PE42-2] Schulung zum Erwerb, zur Erhaltung oder zur Verbesserung beruflicher Fähigkeiten","[PB7] Immunsystem","[PT27] Muskuloskelettale Erkrankung des Menschen",null,null,null,null,"[PR91] Gentoxizität",null,null,null,null,"[ST1] Überschussgewebe von der Markierung eines Tieres mittels Ohrlochung",null,null,null,null,null,null,null,null,null,null,null,null,null,null,null,null,null,null,null,null,"Speichern",null,null,null,"Auswählen"]
["[PB8] ","[PB8] (Grundlagenforschung) Urogenitales System/Fortpflanzungssystem",null,null,null,null,null,null,null,"A8","Kaninchen (Oryctolagus cuniculus)",null,"[A8] Kaninchen (Oryctolagus cuniculus)",null,null,null,null,null,null,"Estonia",null,null,null,null,null,null,null,null,null,"[LT8] Vorschriften für Futtermittel, einschließlich der Vorschriften für die Sicherheit von Zieltieren, Arbeitnehmern und Umwelt",null,null,null,null,null,null,null,null,null,null,null,null,null,null,null,null,null,null,null,null,null,null,null,null,null,null,null,null,null,null,null,null,null,null,null,null,null,null,2028,null,null,"[PF43] Forensische Untersuchungen","[PB8] Urogenitales System/Fortpflanzungssystem","[PT28] Immunerkrankungen des Menschen",null,null,null,null,"[PR92] Reproduktionstoxizität",null,null,null,null,"[ST2] Überschussgewebe von der Markierung eines Tieres mittels Toe Clipping",null,null,null,null,null,null,null,null,null,null,null,null,null,null,null,null,null,null,null,null,"Speichern & Duplizieren",null,null,null,"Auswahl des Versuchszwecks"]
["[PB9] ","[PB9] (Grundlagenforschung) Sinnesorgane (Haut, Augen und Ohren)",null,null,null,null,null,null,null,"A9","Katzen (Felis catus)",null,"[A9] Katzen (Felis catus)",null,null,null,null,null,null,"Finland",null,null,null,null,null,null,null,null,null,"[LT9] Vorschriften für Kosmetikprodukte",null,null,null,null,null,null,null,null,null,null,null,null,null,null,null,null,null,null,null,null,null,null,null,null,null,null,null,null,null,null,null,null,null,null,null,null,null,null,2029,null,null,"[PG43] Erhaltung von Kolonien etablierter genetisch veränderter Tiere, die nicht in anderen Verfahren verwendet werden","[PB9] Sinnesorgane (Haut, Augen und Ohren)","[PT29] Erkrankungen des urogenitalen/des Fortpflanzungssystems des Menschen",null,null,null,null,"[PR93] Entwicklungstoxizität",null,null,null,null,"[NG1] Nicht-Invasive Genotypisierung: Haarprobe",null,null,null,null,null,null,null,null,null,null,null,null,null,null,null,null,null,null,null,null,"Abbrechen"]
["[PB10]","[PB10] (Grundlagenforschung) Endokrines System/Stoffwechsel",null,null,null,null,null,null,null,"A10","Hunde (Canis familiaris)",null,"[A10] Hunde (Canis familiaris)",null,null,null,null,null,null,"France",null,null,null,null,null,null,null,null,null,"[LT10] Andere Vorschriften",null,null,null,null,null,null,null,null,null,null,null,null,null,null,null,null,null,null,null,null,null,null,null,null,null,null,null,null,null,null,null,null,null,null,null,null,null,null,2030,null,null,"[PN107] Non-EU Purpose","[PB10] Endokrines System/Stoffwechsel","[PT30] Erkrankungen der Sinnesorgane des Menschen (Haut, Augen und Ohren)",null,null,null,null,"[PR94] Neurotoxizität",null,null,null,null,"[NG2] Nicht-Invasive Genotypisierung: Beobachtung unter besonderem Licht",null,null,null,null,null,null,null,null,null,null,null,null,null,null,null,null,null,null,null,null,"Inhalt der Datenzeile"]
[{"$f":"MID(B12,1,6)","v":"[PB14]"},"[PB14] (Grundlagenforschung) Entwicklungsbiologie",null,null,null,null,null,null,null,"A11","Frettchen (Mustela putorius furo)",null,"[A11] Frettchen (Mustela putorius furo)",null,null,null,null,null,null,"Germany",null,null,null,null,null,null,null,null,null,null,null,null,null,null,null,null,null,null,null,null,null,null,null,null,null,null,null,null,null,null,null,null,null,null,null,null,null,null,null,null,null,null,null,null,null,null,null,null,2031,null,null,null,"[PB14] Entwicklungsbiologie","[PT31] Erkrankungen des endokrinen Systems/des Stoffwechselsystems des Menschen",null,null,null,null,"[PR95] Kinetik (Pharmakokinetik, Toxikokinetik, Rückstandsabbau)",null,null,null,null,"[NG3] Nicht-Invasive Genotypisierung: post mortem",null,null,null,null,null,null,null,null,null,null,null,null,null,null,null,null,null,null,null,null,"Meldung einer Verwendung nach § 7 Abs. 2 TierSchG"]
["[PB11]","[PB11] (Grundlagenforschung) Multisystemisch",null,null,null,null,null,null,null,"A12","Andere Fleischfresser (Andere Carnivora)",null,"[A12] Andere Fleischfresser (Andere Carnivora)",null,null,null,null,null,null,"Greece",null,null,null,null,null,null,null,null,null,null,null,null,null,null,null,null,null,null,null,null,null,null,null,null,null,null,null,null,null,null,null,null,null,null,null,null,null,null,null,null,null,null,null,null,null,null,null,null,2032,null,null,null,"[PB11] Multisystemisch","[PT32] Andere Humanerkrankungen",null,null,null,null,"[PR96] Pharmakodynamik (einschließlich Sicherheitspharmakologie)",null,null,null,null,"[NG4] Nicht-Invasive Genotypisierung: Andere",null,null,null,null,null,null,null,null,null,null,null,null,null,null,null,null,null,null,null,null,"Auswahlmenü"]
["[PB12]","[PB12] (Grundlagenforschung) Ethologie/Tierverhalten/Tierbiologie",null,null,null,null,null,null,null,"A13","Pferde, Esel und Kreuzungen (Equidae)",null,"[A13] Pferde, Esel und Kreuzungen (Equidae)",null,null,null,null,null,null,"Hungary",null,null,null,null,null,null,null,null,null,null,null,null,null,null,null,null,null,null,null,null,null,"Meldung",null,null,null,null,null,null,null,null,null,null,null,null,null,null,null,null,null,null,null,null,null,null,null,null,null,null,2033,null,null,null,"[PB12] Ethologie/Tierverhalten/Tierbiologie","[PT33] Tiererkrankungen und - krankheiten",null,null,null,null,"[PR97] Fototoxizität"]
["[PB13]","[PB13] (Grundlagenforschung) Andere",null,null,null,null,null,null,null,"A14","Schweine (Sus scrofa domesticus)",null,"[A14] Schweine (Sus scrofa domesticus)",null,null,null,null,null,null,"Ireland",null,null,null,null,null,null,null,null,null,null,null,null,null,null,null,null,null,null,null,null,null,"T1: nach § 7 TierSchG",null,null,null,null,null,null,null,null,null,null,null,null,null,null,null,null,null,null,null,null,null,null,null,null,null,null,null,null,null,null,"[PB13] Andere","[PT38] Tierernährung",null,null,null,null,"Ökotoxizität"]
["[PT21]","[PT21] (Transl./angewandte Forschung) Krebserkrankungen des Menschen",null,null,null,null,null,null,null,"A15","Ziegen (Capra aegagrus hircus)",null,"[A15] Ziegen (Capra aegagrus hircus)",null,null,null,null,null,null,"Italy",null,null,null,null,null,null,null,null,null,null,null,null,null,null,null,null,null,null,null,null,null,"T2: nach § 4 TierSchG",null,null,null,null,null,null,null,null,null,null,null,null,null,null,null,null,null,null,null,null,null,null,null,null,null,null,null,null,null,null,null,"[PT34] Tierschutz",null,null,null,null,"[PR104] Unbedenklichkeitsprüfung von Nahnungs- und Futtermitteln"]
["[PT22]","[PT22] (Transl./angewandte Forschung) Infektionskrankheiten des Menschen",null,null,null,null,null,null,null,"A16","Schafe (Ovis aries)",null,"[A16] Schafe (Ovis aries)",null,null,null,null,null,null,"Latvia",null,null,null,null,null,null,null,null,null,null,null,null,null,null,null,null,null,null,null,null,null,"T3: optional",null,null,null,null,null,null,null,null,null,null,null,null,null,null,null,null,null,null,null,null,null,null,null,null,null,null,null,null,null,null,null,"[PT35] Krankheitsdiagnose",null,null,null,null,"[PR105] Unbedenklichkeit für Zieltiere"]
["[PT23]","[PT23] (Transl./angewandte Forschung) Kardiovaskuläre Erkrankung des Menschen",null,null,null,null,null,null,null,"A17","Rinder (Bos taurus)",null,"[A17] Rinder (Bos taurus)",null,null,null,null,null,null,"Lithuania",null,null,null,null,null,null,null,null,null,null,null,null,null,null,null,null,null,null,null,null,null,null,null,null,null,null,null,null,null,null,null,null,null,null,null,null,null,null,null,null,null,null,null,null,null,null,null,null,null,null,null,null,null,"[PT36] Pflanzenkrankheiten",null,null,null,null,"[PR107] Kombinierte Endpunkte"]
["[PT24]","[PT24] (Transl./angewandte Forschung) Nerven- und Geisteserkrankungen des Menschen",null,null,null,null,null,null,null,"A18","Halbaffen (Prosimia)",null,"[A18] Halbaffen (Prosimia)",null,null,null,null,null,null,"Luxembourg",null,null,null,null,null,null,null,null,null,null,null,null,null,null,null,null,null,null,null,null,null,null,null,null,null,null,null,null,null,null,null,null,null,null,null,null,null,null,null,null,null,null,null,null,null,null,null,null,null,null,null,null,null,"[PT37] Nicht regulatorische Toxikologie und Ökotoxikologie",null,null,null,null,"[PR106] Andere Toxizitäts- oder Unbedenklichkeitsprüfungen"]
["[PT25]","[PT25] (Transl./angewandte Forschung) Atemwegserkrankungen des Menschen",null,null,null,null,null,null,null,"A19","Marmosetten und Tamarine (eg. Callithrix jacchus)",null,"[A19] Marmosetten und Tamarine (eg. Callithrix jacchus)",null,null,null,null,null,null,"Malta"]
["[PT26]","[PT26] (Transl./angewandte Forschung) Gastrointestinale Erkrankung des Menschen, einschließlich der Leber",null,null,null,null,null,null,null,"A20","Javaneraffen (Macaca fascicularis)",null,"[A20] Javaneraffen (Macaca fascicularis)",null,null,null,null,null,null,"Netherlands"]
["[PT27]","[PT27] (Transl./angewandte Forschung) Muskuloskelettale Erkrankung des Menschen",null,null,null,null,null,null,null,"A21","Rhesusaffen (Macaca mulatta)",null,"[A21] Rhesusaffen (Macaca mulatta)",null,null,null,null,null,null,"Poland"]
["[PT28]","[PT28] (Transl./angewandte Forschung) Immunerkrankungen des Menschen",null,null,null,null,null,null,null,"A22","Grüne Meerkatzen (Chloderocebus spp.) (in der Regel auch pygerythrus oder sabaeus)",null,"[A22] Grüne Meerkatzen (Chloderocebus spp.) (in der Regel auch pygerythrus oder sabaeus)",null,null,null,null,null,null,"Portugal"]
["[PT29]","[PT29] (Transl./angewandte Forschung) Erkrankungen des urogenitalen/des Fortpflanzungssystems des Menschen",null,null,null,null,null,null,null,"A23","Paviane (Papio spp.)",null,"[A23] Paviane (Papio spp.)",null,null,null,null,null,null,"Romania"]
["[PT30]","[PT30] (Transl./angewandte Forschung) Erkrankungen der Sinnesorgane des Menschen (Haut, Augen und Ohren)",null,null,null,null,null,null,null,"A24","Totenkopfaffen (eg. Saimiri sciureus)",null,"[A24] Totenkopfaffen (eg. Saimiri sciureus)",null,null,null,null,null,null,"Slovakia"]
["[PT31]","[PT31] (Transl./angewandte Forschung) Erkrankungen des endokrinen Systems/des Stoffwechselsystems des Menschen",null,null,null,null,null,null,null,"A25-1","Andere Arten von Neuweltaffen (Andere Arten von Cercopithecoidea)",null,"[A25-1] Andere Arten von Neuweltaffen (Andere Arten von Cercopithecoidea)",null,null,null,null,null,null,"Slovenia"]
["[PT32]","[PT32] (Transl./angewandte Forschung) Andere Humanerkrankungen",null,null,null,null,null,null,null,"A25-2","Andere Arten von Altweltaffen (Andere Arten von Ceboidea)",null,{"$f":"CONCATENATE(\"[\",J27,\"] \",K27)","v":"[A25-2] Andere Arten von Altweltaffen (Andere Arten von Ceboidea)"},null,null,null,null,null,null,"Spain"]
["[PT33]","[PT33] (Transl./angewandte Forschung) Tiererkrankungen und - krankheiten",null,null,null,null,null,null,null,"A26","Menschenaffen (Hominoidea)",null,"[A26] Menschenaffen (Hominoidea)",null,null,null,null,null,null,"Sweden",null,null,null,null,null,null,null,null,null,null,null,null,null,null,null,null,null,null,null,null,null,null,null,null,null,null,null,null,null,null,null,null,null,null,null,null,null,null,null,null,null,null,"Informationen zu Verbesserungen (Refinement) der Methoden zur Genotypsierung, insbesondere bei Gewebeproben"]
[{"$f":"MID(B29,1,6)","v":"[PT38]"},"[PT38] (Transl./angewandte Forschung) Tierernährung",null,null,null,null,null,null,null,"A27","Andere Säugetiere (Andere Mammalia)",null,"[A27] Andere Säugetiere (Andere Mammalia)",null,null,null,null,null,null,"United Kingdom"]
["[PT34]","[PT34] (Transl./angewandte Forschung) Tierschutz",null,null,null,null,null,null,null,"A28","Haushühner (Gallus gallus domesticus)",null,"[A28] Haushühner (Gallus gallus domesticus)",null,null,null,null,null,null," "]
["[PT35]","[PT35] (Transl./angewandte Forschung) Krankheitsdiagnose",null,null,null,null,null,null,null,"A37","Truthühner (Meleagris gallopavo)",null,"[A37] Truthühner (Meleagris gallopavo)",null,null,null,null,null,null," "]
["[PT36]","[PT36] (Transl./angewandte Forschung) Pflanzenkrankheiten",null,null,null,null,null,null,null,"A29","Andere Vögel (Andere Aves)",null,"[A29] Andere Vögel (Andere Aves)",null,null,null,null,null,null," "]
["[PT37]","[PT37] (Transl./angewandte Forschung) Nicht regulatorische Toxikologie und Ökotoxikologie",null,null,null,null,null,null,null,"A30","Reptilien (Reptilia)",null,"[A30] Reptilien (Reptilia)",null,null,null,null,null,null," "]
["[PE40]","[PE40] Schutz der natürlichen Umwelt im Interesse der Gesundheit oder des Wohlbefindens von Menschen und Tieren",null,null,null,null,null,null,null,"A31","Frösche (Rana temporaria and Rana pipiens)",null,"[A31] Frösche (Rana temporaria and Rana pipiens)",null,null,null,null,null,null," "]
["[PS41]","[PS41] Erhaltung der Art",null,null,null,null,null,null,null,"A32","Krallenfrösche Xenopus laevis und Xenopus tropicalis)",null,"[A32] Krallenfrösche Xenopus laevis und Xenopus tropicalis)",null,null,null,null,null,null," "]
[{"$f":"MID(B36,1,8)","v":"[PE42-1]"},"[PE42-1] Hochschulausbildung",null,null,null,null,null,null,null,"A33","Andere Amphibien (Andere Amphibia)",null,"[A33] Andere Amphibien (Andere Amphibia)",null,null,null,null,null,null," "]
[{"$f":"MID(B37,1,8)","v":"[PE42-2]"},"[PE42-2] Schulung zum Erwerb, zur Erhaltung oder zur Verbesserung beruflicher Fähigkeiten",null,null,null,null,null,null,null,"A34","Zebrafische (Danio rerio)",null,"[A34] Zebrafische (Danio rerio)",null,null,null,null,null,null," "]
[{"$f":"MID(B38,1,6)","v":"[PF43]"},"[PF43] Forensische Untersuchungen",null,null,null,null,null,null,null,"A38","Wolfsbarsche (spp., z.B. Serranidae, Moronidae)",null,"[A38] Wolfsbarsche (spp., z.B. Serranidae, Moronidae)",null,null,null,null,null,null," "]
["[PG43]","[PG43] Erhaltung von Kolonien etablierter genetisch veränderter Tiere, die nicht in anderen Verfahren verwendet werden",null,null,null,null,null,null,null,"A39","Lachse, Forellen, Saiblinge und Äschen (Salmonidae)",null,"[A39] Lachse, Forellen, Saiblinge und Äschen (Salmonidae)",null,null,null,null,null,null," "]
["[PR51]","[PR51] (Routineproduktion) Produkte auf Blutbasis",null,null,null,null,null,null,null,"A40","Guppys, Schwertträger, Spitzmaulkärpflinge, Spiegelkärpflinge (Poeciliidae)",null,"[A40] Guppys, Schwertträger, Spitzmaulkärpflinge, Spiegelkärpflinge (Poeciliidae)",null,null,null,null,null,null," "]
["[PR52]","[PR52] (Routineproduktion) Monoklonale Antikörper nur im Aszites-Verfahren",null,null,null,null,null,null,null,"A35","Andere Fische (Andere Pisces)",null,"[A35] Andere Fische (Andere Pisces)",null,null,null,null,null,null," "]
["[PR54]","[PR54] (Routineproduktion) Monoklonale und polyklonale Antikörper (ausgenommen im Aszites-Verfahren)",null,null,null,null,null,null,null,"A36","Kopffüßer (Cephalopoda)",null,"[A36] Kopffüßer (Cephalopoda)",null,null,null,null,null,null," "]
["[PR53]","[PR53] (Routineproduktion) Andere Produkte",null,null,null,null,null,null,null," ",null,null,null,null,null,null,null,null,null," "]
["[PR61]","[PR61] (Regulatorische Zwecke/ Qualitätskontrolle) Chargenunbedenklichkeitsprüfungen",null,null,null,null,null,null,null," ",null,null,null,null,null,null,null,null,null," "]
["[PR62]","[PR62] (Regulatorische Zwecke/ Qualitätskontrolle) Pyrogenitätsprüfungen",null,null,null,null,null,null,null," ",null,null,null,null,null,null,null,null,null," "]
["[PR63]","[PR63] (Regulatorische Zwecke/ Qualitätskontrolle) Chargenpotenzprüfungen",null,null,null,null,null,null,null," ",null,null,null,null,null,null,null,null,null," "]
["[PR64]","[PR64] (Regulatorische Zwecke/ Qualitätskontrolle) Andere Qualitätskontrollen",null,null,null,null,null,null,null," ",null,null,null,null,null,null,null,null,null," "]
["[PR71]","[PR71] (Regulatorische Zwecke) Andere Wirksamkeits- und Toleranzprüfungen",null,null,null,null,null,null,null," ",null,null,null,null,null,null,null,null,null," "]
["[PR81]","[PR81] (Regulatorische Zwecke/Toxizität und Andere../Akute Toxizität) LD50, LC50",null,null,null,null,null,null,null," ",null,null,null,null,null,null,null,null,null," "]
["[PR82]","[PR82] (Regulatorische Zwecke/Toxizität und Andere../Akute Toxizität) Andere letale Methoden",null,null,null,null,null,null,null," ",null,null,null,null,null,null,null,null,null," "]
["[PR83]","[PR83] (Regulatorische Zwecke/Toxizität und Andere../Akute Toxizität) Nichtletale Methoden",null,null,null,null,null,null,null," ",null,null,null,null,null,null,null,null,null," "]
["[PR84]","[PR84] (Regulatorische Zwecke/Toxizität und Andere..) Hautreizung/-verätzung",null,null,null,null,null,null,null," ",null,null,null,null,null,null,null,null,null," "]
["[PR85]","[PR85] (Regulatorische Zwecke/Toxizität und Andere..) Sensibilisierung der Haut",null,null,null,null,null,null,null," ",null,null,null,null,null,null,null,null,null," "]
["[PR86]","[PR86] (Regulatorische Zwecke/Toxizität und Andere..) Augenreizung/-verätzung",null,null,null,null,null,null,null," ",null,null,null,null,null,null,null,null,null," "]
["[PR87]","[PR87] (Regulatorische Zwecke/Toxizität und Andere../Toxizität bei wiederholter Verabreichung) Bis zu 28 Tage",null,null,null,null,null,null,null," ",null,null,null,null,null,null,null,null,null," "]
["[PR88]","[PR88] (Regulatorische Zwecke/Toxizität und Andere../Toxizität bei wiederholter Verabreichung) 29 - 90 Tage",null,null,null,null,null,null,null," ",null,null,null,null,null,null,null,null,null," "]
["[PR89]","[PR89] (Regulatorische Zwecke/Toxizität und Andere../Toxizität bei wiederholter Verabreichung) mehr als 90 Tage",null,null,null,null,null,null,null," ",null,null,null,null,null,null,null,null,null," "]
["[PR90]","[PR90] (Regulatorische Zwecke/Toxizität und Andere..) Kanzerogenität",null,null,null,null,null,null,null," ",null,null,null,null,null,null,null,null,null," "]
["[PR91]","[PR91] (Regulatorische Zwecke/Toxizität und Andere..) Genotoxizität",null,null,null,null,null,null,null," ",null,null,null,null,null,null,null,null,null," "]
["[PR92]","[PR92] (Regulatorische Zwecke/Toxizität und Andere..) Reproduktionstoxizität",null,null,null,null,null,null,null," ",null,null,null,null,null,null,null,null,null," "]
["[PR93]","[PR93] (Regulatorische Zwecke/Toxizität und Andere..) Entwicklungstoxizität",null,null,null,null,null,null,null," ",null,null,null,null,null,null,null,null,null," "]
["[PR94]","[PR94] (Regulatorische Zwecke/Toxizität und Andere..) Neurotoxizität",null,null,null,null,null,null,null," ",null,null,null,null,null,null,null,null,null," "]
["[PR95]","[PR95] (Regulatorische Zwecke/Toxizität und Andere..) Kinetik (Pharmakokinetik, Toxikokinetik, Rückstandsabbau)",null,null,null,null,null,null,null," ",null,null,null,null,null,null,null,null,null," "]
["[PR96]","[PR96] (Regulatorische Zwecke/Toxizität und Andere..) Pharmakodynamik (einschließlich Sicherheitspharmakologie)",null,null,null,null,null,null,null," ",null,null,null,null,null,null,null,null,null," "]
["[PR97]","[PR97] (Regulatorische Zwecke/Toxizität und Andere..) Fototoxizität",null,null,null,null,null,null,null," ",null,null,null,null,null,null,null,null,null," "]
["[PR98]","[PR98] (Regulatorische Zwecke/Toxizität und Andere../Ökotoxizität) Akute Toxizität (Ökotoxizität)",null,null,null,null,null,null,null," ",null,null,null,null,null,null,null,null,null," "]
["[PR99]","[PR99] (Regulatorische Zwecke/Toxizität und Andere../Ökotoxizität) Chronische Toxizität (Ökotoxizität)",null,null,null,null,null,null,null," ",null,null,null,null,null,null,null,null,null," "]
[{"$f":"MID(B68,1,7)","v":"[PR100]"},"[PR100] (Regulatorische Zwecke/Toxizität und Andere../Ökotoxizität) Reproduktionstoxizität (Ökotoxizität)",null,null,null,null,null,null,null," ",null,null,null,null,null,null,null,null,null," "]
[{"$f":"MID(B69,1,7)","v":"[PR101]"},"[PR101] (Regulatorische Zwecke/Toxizität und Andere../Ökotoxizität) Endokrine Wirkung (Ökotoxizität)",null,null,null,null,null,null,null," ",null,null,null,null,null,null,null,null,null," "]
["[PR102]","[PR102] (Regulatorische Zwecke/Toxizität und Andere../Ökotoxizität) Bioakkumulation (Ökotoxizität)",null,null,null,null,null,null,null," ",null,null,null,null,null,null,null,null,null," "]
["[PR103]","[PR103] (Regulatorische Zwecke/Toxizität und Andere../Ökotoxizität) Andere Ökotoxizität",null,null,null,null,null,null,null," ",null,null,null,null,null,null,null,null,null," "]
["[PR104]","[PR104] (Regulatorische Zwecke/Toxizität und Andere..) Unbedenklichkeitsprüfung von Nahrungs- und Futtermitteln",null,null,null,null,null,null,null," ",null,null,null,null,null,null,null,null,null," "]
["[PR105]","[PR105] (Regulatorische Zwecke/Toxizität und Andere..) Unbedenklichkeit für Zieltiere",null,null,null,null,null,null,null," ",null,null,null,null,null,null,null,null,null," "]
["[PR107]","[PR107] (Regulatorische Zwecke/Toxizität und Andere..) Kombinierte Endpunkte",null,null,null,null,null,null,null," ",null,null,null,null,null,null,null,null,null," "]
["[PR106]","[PR106] (Regulatorische Zwecke/Toxizität und Andere..) Andere Toxizitäts- oder Unbedenklichkeitsprüfungen",null,null,null,null,null,null,null," ",null,null,null,null,null,null,null,null,null," "]
[null,null,null,null,null,null,null,null,null," ",null,null,null,null,null,null,null,null,null," "]
[null,null,null,null,null,null,null,null,null," "]
[null,null,null,null,null,null,null,null,null," "]
[null,null,null,null,null,null,null,null,null," "]

{"sheet":"Refinement der Genotypisierung","index":3,"n_rows":2,"n_cols":1,"rows_kept":2,"cut":false,"hidden":false,"merged":[]}
[{"$f":"label_efforts_made_to_refine2","v":"Informationen zu Verbesserungen (Refinement) der Methoden zur Genotypsierung, insbesondere bei Gewebeproben"}]
["Falls Sie Genotypisierungen melden, beschreiben Sie hier bitte, inwiefern Sie Bestrebungen unternommen haben, die Methode(n) der Genotypisierungen zu verbessern (Refinement)"]

{"sheet":"Validierung","index":4,"n_rows":19,"n_cols":2,"rows_kept":19,"cut":false,"hidden":false,"merged":[[18,1,19,6],[2,1,5,6],[7,1,10,6],[11,1,17,6]]}
[]
[]
[null,"Um eine Vorab-Validierung der Daten durchzuführen, klicken Sie bitte \"Validieren\". Sie müssen diese Funktion erneut ausführen, wenn Sie Änderungen an der Tabelle vornehmen."]
[]
[]
[]
[]
[null,"Die Funktion färbt fehlende oder widersprüchliche Angaben rot ein."]
[]
[]
[]
[null,{"$f":"HYPERLINK(\"https://webgate.ec.europa.eu/envdataportal/web/resources/public/alures/statistics/validate\",\"Sobald die Vorab-Validierung erfolgreich verlaufen ist, können Sie die Tabelle für eine umfassendere Plausibilitätsprüfung auch bei der ALURES-Datenbank einreichen: https://webgate.ec.europa.eu/envdataportal/web/resources/public/alures/statistics/validate\")","v":"Sobald die Vorab-Validierung erfolgreich verlaufen ist, können Sie die Tabelle für eine umfassendere Plausibilitätsprüfung auch bei der ALURES-Datenbank einreichen: https://webgate.ec.europa.eu/envdataportal/web/resources/public/alures/statistics/validate"}]
[]
[]
[]
[]
[]
[]
[null,"Sollten dann noch Warnungen auftreten, so sind diese in Spalte V zu erläutern."]